bitfinex-derivatives/quotes_BTCF0:USTF0_20250720
["timestamp","ask_amount","ask_price","bid_price","bid_amount"]
[1752975923773,0.01683777,118120.0,118110.0,0.2558436]
[1752975923966,0.01683777,118120.0,118110.0,1.77829408]
[1752975924162,0.03618301,118120.0,118110.0,1.65048884]
[1752975924367,0.01683777,118120.0,118110.0,1.65048884]
[1752975924567,0.03618026,118120.0,118110.0,1.65048884]
[1752975924766,0.01683777,118120.0,118110.0,1.65048884]
[1752975925163,0.03618054,118120.0,118110.0,1.65048884]
[1752975925872,0.01934277,118120.0,118110.0,1.65048884]
[1752975926079,0.15953524,118130.0,118120.0,0.2028592]
[1752975926374,0.20341634,118130.0,118120.0,0.76363444]
[1752975926774,0.0756111,118130.0,118120.0,0.76363444]
[1752975926974,0.37263124,118130.0,118120.0,0.76363444]
[1752975927175,0.37363124,118130.0,118120.0,0.76363444]
[1752975927778,0.245826,118130.0,118120.0,0.76363444]
[1752975928081,0.37363124,118130.0,118120.0,1.12443444]
[1752975928274,0.37463124,118130.0,118120.0,1.12443444]
[1752975928573,0.37463124,118130.0,118120.0,0.83192382]
[1752975928876,0.246826,118130.0,118120.0,0.83192382]
[1752975929073,0.37463124,118130.0,118120.0,0.83192382]
[1752975929676,0.37463124,118130.0,118120.0,0.32411858]
[1752975930176,0.37463124,118130.0,118120.0,0.45192382]
[1752975930975,0.246826,118130.0,118120.0,0.45192382]
[1752975931279,0.37463124,118130.0,118120.0,0.45192382]
[1752975933679,0.37463124,118130.0,118120.0,0.81272382]
[1752975934181,0.37463124,118130.0,118120.0,0.68491858]
[1752975934383,0.37463124,118130.0,118120.0,0.81272382]
[1752975934883,0.37463124,118130.0,118120.0,0.68491858]
[1752975935079,0.37463124,118130.0,118120.0,0.81272382]
[1752975935281,0.246826,118130.0,118120.0,0.81272382]
[1752975935582,0.37463124,118130.0,118120.0,0.81272382]
[1752975937483,0.246826,118130.0,118120.0,0.81272382]
[1752975937783,0.37463124,118130.0,118120.0,0.81272382]
[1752975941593,0.37463124,118130.0,118120.0,0.32411858]
[1752975941792,0.37463124,118130.0,118120.0,0.45192382]
[1752975942784,0.39922124,118130.0,118120.0,0.45192382]
[1752975948682,0.39922124,118130.0,118120.0,0.32411858]
[1752975948888,0.39922124,118130.0,118120.0,0.45192382]
[1752975949391,0.39922124,118130.0,118120.0,0.32411858]
[1752975949591,0.52702648,118130.0,118120.0,0.30852858]
[1752975949785,0.88782648,118130.0,118120.0,0.26799858]
[1752975949986,1.47346648,118130.0,118120.0,0.30852858]
[1752975950688,1.34566124,118130.0,118120.0,0.32411858]
[1752975951491,1.34566124,118130.0,118120.0,0.30852858]
[1752975952894,1.47346648,118130.0,118120.0,0.30852858]
[1752975955191,1.47346648,118130.0,118120.0,0.1973792]
[1752975955499,1.217856,118130.0,118120.0,0.1973792]
[1752975955796,1.47346648,118130.0,118120.0,0.1973792]
[1752975956295,1.11266648,118130.0,118120.0,0.2392992]
[1752975957195,1.34566124,118130.0,118120.0,0.2392992]
[1752975957390,0.98486124,118130.0,118120.0,0.2392992]
[1752975958289,1.34566124,118130.0,118120.0,0.2392992]
[1752975958598,0.98486124,118130.0,118120.0,0.2392992]
[1752975959904,1.34566124,118130.0,118120.0,0.2392992]
[1752975960202,0.98486124,118130.0,118120.0,0.2392992]
[1752975960803,1.34566124,118130.0,118120.0,0.07007]
[1752975961205,1.47346648,118130.0,118120.0,0.07007]
[1752975961509,0.98486124,118130.0,118120.0,0.2392991]
[1752975961806,0.98486124,118130.0,118120.0,0.2549891]
[1752975962705,0.857056,118130.0,118120.0,0.2549891]
[1752975963003,0.98478124,118130.0,118120.0,0.2549891]
[1752975964107,0.37463124,118130.0,118120.0,0.38279434]
[1752975964308,0.37463124,118130.0,118120.0,0.74359434]
[1752975964510,0.96019124,118130.0,118120.0,0.74359434]
[1752975965213,0.96019124,118130.0,118120.0,0.81219852]
[1752975965510,0.95921583,118130.0,118120.0,0.81219852]
[1752975966009,0.98355583,118130.0,118120.0,0.81219852]
[1752975966807,0.98255583,118130.0,118120.0,0.81219852]
[1752975969108,0.98255583,118130.0,118120.0,0.45139852]
[1752975970511,0.98255583,118130.0,118120.0,0.81219852]
[1752975971013,0.98255583,118130.0,118120.0,0.68439328]
[1752975971313,0.98255583,118130.0,118120.0,0.81219852]
[1752975974317,0.85475059,118130.0,118120.0,0.81219852]
[1752975974520,0.98255583,118130.0,118120.0,0.81219852]
[1752975975419,0.98255583,118130.0,118120.0,0.68439328]
[1752975975620,0.98255583,118130.0,118120.0,0.81219852]
[1752975979022,0.98255583,118130.0,118120.0,0.68439328]
[1752975979224,0.98255583,118130.0,118120.0,0.81219852]
[1752975979924,0.98255583,118130.0,118120.0,0.68439328]
[1752975980624,0.85475059,118130.0,118120.0,0.68439328]
[1752975980825,0.98255583,118130.0,118120.0,0.81219852]
[1752975981526,0.98255583,118130.0,118120.0,0.68439328]
[1752975983028,0.85475059,118130.0,118120.0,0.68439328]
[1752975983224,0.98255583,118130.0,118120.0,0.68439328]
[1752975985531,0.98255583,118130.0,118120.0,0.81219852]
[1752975986130,0.98255583,118130.0,118120.0,0.68439328]
[1752975986330,0.98255583,118130.0,118120.0,0.81219852]
[1752975986825,0.98255583,118130.0,118120.0,0.45139852]
[1752975987027,0.98255583,118130.0,118120.0,0.81219852]
[1752975987529,0.98255583,118130.0,118120.0,0.68439328]
[1752975988724,0.98255583,118130.0,118120.0,0.81219852]
[1752975992730,0.20344093,118130.0,118120.0,0.81219852]
[1752975992930,0.95789583,118130.0,118120.0,0.68439328]
[1752975993130,0.95789583,118130.0,118120.0,0.81219852]
[1752975995534,0.98050583,118130.0,118120.0,0.81219852]
[1752975995735,0.85270059,118130.0,118120.0,0.81219852]
[1752975995937,0.98050583,118130.0,118120.0,0.81219852]
[1752975997235,0.98045021,118130.0,118120.0,0.81219852]
[1752976002837,0.95784021,118130.0,118120.0,0.81219852]
[1752976003741,0.98045021,118130.0,118120.0,0.81219852]
[1752976011451,0.78862531,118130.0,118120.0,0.81219852]
[1752976011752,0.78862531,118130.0,118120.0,1.14219852]
[1752976011951,0.95784021,118130.0,118120.0,1.14219852]
[1752976012147,0.78862531,118130.0,118120.0,1.14219852]
[1752976013442,0.78862531,118130.0,118120.0,1.01439328]
[1752976013646,0.78862531,118130.0,118120.0,1.14219852]
[1752976014152,0.76931524,118130.0,118120.0,1.14219852]
[1752976014355,0.9578373,118130.0,118120.0,1.14219852]
[1752976014551,0.9807573,118130.0,118120.0,1.01439328]
[1752976014853,0.9807573,118130.0,118120.0,1.14219852]
[1752976015254,0.9807573,118130.0,118120.0,1.01439328]
[1752976015554,0.8115424,118130.0,118120.0,1.14219852]
[1752976015749,0.9807574,118130.0,118120.0,1.14219852]
[1752976017855,0.8115424,118130.0,118120.0,1.14219852]
[1752976020463,0.9807573,118130.0,118120.0,1.14219852]
[1752976021153,0.68373716,118130.0,118120.0,1.14219852]
[1752976021353,0.66081716,118130.0,118120.0,1.14219852]
[1752976021553,0.7886224,118130.0,118120.0,1.14219852]
[1752976022159,0.7886224,118130.0,118120.0,1.27000376]
[1752976022750,0.7886224,118130.0,118120.0,1.14219852]
[1752976023159,0.66081716,118130.0,118120.0,1.14219852]
[1752976023361,0.7886224,118130.0,118120.0,1.14219852]
[1752976023562,0.7886224,118130.0,118120.0,1.27000376]
[1752976025560,0.7886224,118130.0,118120.0,1.01439328]
[1752976025762,0.8115424,118130.0,118120.0,1.14219852]
[1752976027368,0.8115424,118130.0,118120.0,0.78139852]
[1752976027567,0.8115424,118130.0,118120.0,1.14219852]
[1752976028967,0.8115424,118130.0,118120.0,0.78139852]
[1752976029167,0.8115424,118130.0,118120.0,1.14219852]
[1752976030170,0.68373716,118130.0,118120.0,1.14219852]
[1752976030370,0.8115424,118130.0,118120.0,1.14219852]
[1752976033976,0.68373716,118130.0,118120.0,1.14219852]
[1752976034278,0.8115424,118130.0,118120.0,1.14219852]
[1752976038986,0.9807572,118130.0,118120.0,1.14219852]
[1752976044790,0.9807572,118130.0,118120.0,0.78139852]
[1752976044990,0.9807572,118130.0,118120.0,1.14219852]
[1752976045691,0.9807572,118130.0,118120.0,1.01439328]
[1752976045887,0.9807572,118130.0,118120.0,1.14219852]
[1752976047190,0.98070202,118130.0,118120.0,1.14219852]
[1752976052393,0.85289678,118130.0,118120.0,1.27000376]
[1752976052595,0.98070202,118130.0,118120.0,1.27000376]
[1752976054593,0.68368198,118130.0,118120.0,1.27000376]
[1752976054895,0.95778192,118130.0,118120.0,1.14219852]
[1752976055090,0.95778192,118130.0,118120.0,1.27000376]
[1752976055295,0.82997668,118130.0,118120.0,1.27000376]
[1752976058303,0.85410668,118130.0,118120.0,1.27000376]
[1752976058600,0.98191192,118130.0,118120.0,1.27000376]
[1752976058801,0.85410668,118130.0,118120.0,1.27000376]
[1752976059001,0.81269722,118130.0,118120.0,1.27000376]
[1752976059202,0.78856722,118130.0,118120.0,1.27000376]
[1752976059803,0.82997678,118130.0,118120.0,1.27000376]
[1752976061200,0.8107248,118130.0,118120.0,1.27000376]
[1752976061401,0.83006523,118130.0,118120.0,1.27000376]
[1752976064906,0.83006523,118130.0,118120.0,1.01439328]
[1752976065204,0.98200047,118130.0,118120.0,1.14019852]
[1752976065414,0.85419523,118130.0,118120.0,1.26800376]
[1752976067910,0.98200047,118130.0,118120.0,1.26800376]
[1752976068408,0.98199994,118130.0,118120.0,0.90720376]
[1752976068707,0.98199994,118130.0,118120.0,1.26800376]
[1752976070109,0.98199994,118130.0,118120.0,1.01239328]
[1752976070309,0.98199994,118130.0,118120.0,1.26800376]
[1752976070609,0.98199994,118130.0,118120.0,1.14019852]
[1752976070809,0.98199994,118130.0,118120.0,1.01239328]
[1752976071010,0.98199994,118130.0,118120.0,1.14019852]
[1752976071413,0.98199994,118130.0,118120.0,1.01239328]
[1752976071711,0.98199994,118130.0,118120.0,1.14019852]
[1752976072804,0.98199994,118130.0,118120.0,1.01239328]
[1752976073005,0.98199994,118130.0,118120.0,1.14019852]
[1752976079217,0.98199994,118130.0,118120.0,1.01239328]
[1752976079416,0.98199994,118130.0,118120.0,0.77939852]
[1752976080018,0.9820007,118130.0,118120.0,0.77939852]
[1752976080517,0.9820007,118130.0,118120.0,1.14019852]
[1752976080817,0.9820007,118130.0,118120.0,0.65159328]
[1752976081014,0.9820007,118130.0,118120.0,0.77939852]
[1752976081209,0.9820007,118130.0,118120.0,0.63590328]
[1752976081416,0.9820007,118130.0,118120.0,0.5253791]
[1752976082208,0.9820007,118130.0,118120.0,0.33]
[1752976082209,1.47060594,118130.0,118120.0,0.33]
[1752976082908,1.63991794,118130.0,118120.0,0.33]
[1752976083917,1.64191794,118130.0,118120.0,0.33]
[1752976084322,1.64391794,118130.0,118120.0,0.33]
[1752976084616,0.1998334,118110.0,118100.0,0.81300727]
[1752976084817,0.9761593,118110.0,118100.0,0.45220727]
[1752976085014,0.9761593,118110.0,118100.0,0.34292203]
[1752976085218,0.9761593,118110.0,118100.0,0.48730727]
[1752976086221,0.9771593,118110.0,118100.0,0.48730727]
[1752976086820,0.9781593,118110.0,118100.0,0.48730727]
[1752976087214,0.95881864,118110.0,118100.0,0.48730727]
[1752976087817,0.8310134,118110.0,118100.0,0.48730727]
[1752976088116,0.95881864,118110.0,118100.0,0.48730727]
[1752976088311,0.8310134,118110.0,118100.0,0.48730727]
[1752976088522,0.95881864,118110.0,118100.0,0.84810727]
[1752976089219,0.97818472,118110.0,118100.0,0.84810727]
[1752976089619,0.97818472,118110.0,118100.0,0.97591251]
[1752976090620,0.97818472,118110.0,118100.0,0.84810727]
[1752976090919,0.97818472,118110.0,118100.0,0.97591251]
[1752976090920,0.85037948,118110.0,118100.0,0.97591251]
[1752976091113,0.97818472,118110.0,118100.0,0.97591251]
[1752976091621,0.97818472,118110.0,118100.0,0.84810727]
[1752976095922,0.97818472,118110.0,118100.0,0.72030203]
[1752976096222,0.97818472,118110.0,118100.0,0.84810727]
[1752976100018,0.85037948,118110.0,118100.0,0.84810727]
[1752976100321,0.97818472,118110.0,118100.0,0.84810727]
[1752976101917,0.95881864,118110.0,118100.0,0.84810727]
[1752976102218,0.97816456,118110.0,118100.0,0.84810727]
[1752976105128,0.65814592,118110.0,118100.0,0.84810727]
[1752976105327,0.05193592,118110.0,118100.0,1.32591251]
[1752976105519,0.60458592,118110.0,118100.0,1.32591251]
[1752976105720,0.58524,118110.0,118100.0,1.32591251]
[1752976105925,0.5852,118110.0,118100.0,1.90911251]
[1752976106124,0.002,118110.0,118100.0,1.90911251]
[1752976106929,0.001,118110.0,118100.0,1.91011251]
[1752976107428,0.001,118110.0,118100.0,1.90911251]
[1752976107728,0.001,118110.0,118100.0,1.91111251]
[1752976109725,0.60034292,118120.0,118110.0,0.1692434]
[1752976109930,0.61970354,118120.0,118110.0,1.09332864]
[1752976112839,0.61970354,118120.0,118110.0,1.09432864]
[1752976113540,0.60256062,118120.0,118110.0,1.09432864]
[1752976115044,0.78461586,118120.0,118110.0,1.09432864]
[1752976121453,0.65681062,118120.0,118110.0,1.09432864]
[1752976125654,0.65681062,118120.0,118110.0,0.9665234]
[1752976125854,0.65681062,118120.0,118110.0,1.09432864]
[1752976126659,0.65681062,118120.0,118110.0,0.9665234]
[1752976127059,0.65681062,118120.0,118110.0,1.09432864]
[1752976127656,0.82603962,118120.0,118110.0,1.09432864]
[1752976130561,0.65681062,118120.0,118110.0,1.09432864]
[1752976131660,0.82603962,118120.0,118110.0,1.09432864]
[1752976132363,0.65681062,118120.0,118110.0,1.09432864]
[1752976133167,0.82603962,118120.0,118110.0,1.09432864]
[1752976133865,0.95384486,118120.0,118110.0,1.09432864]
[1752976137169,0.78461586,118120.0,118110.0,1.09432864]
[1752976137768,0.65681062,118120.0,118110.0,1.09432864]
[1752976139464,0.82603962,118120.0,118110.0,1.09432864]
[1752976142766,0.84904962,118120.0,118110.0,0.73352864]
[1752976142972,0.97685486,118120.0,118110.0,1.09432864]
[1752976144179,0.97785486,118120.0,118110.0,1.09432864]
[1752976144471,0.97885486,118120.0,118110.0,0.9655234]
[1752976144663,1.1066601,118120.0,118110.0,0.9655234]
[1752976144867,0.85104962,118120.0,118110.0,0.73252864]
[1752976145169,0.97885486,118120.0,118110.0,1.09332864]
[1752976145365,0.97885486,118120.0,118110.0,0.73252864]
[1752976145567,0.97885486,118120.0,118110.0,1.09332864]
[1752976147172,0.85104962,118120.0,118110.0,1.09332864]
[1752976149575,0.68182062,118120.0,118110.0,1.09332864]
[1752976149966,0.85104962,118120.0,118110.0,1.09332864]
[1752976150975,0.85091704,118120.0,118110.0,1.09332864]
[1752976151578,0.68168804,118120.0,118110.0,1.09332864]
[1752976151772,0.85091714,118120.0,118110.0,1.09332864]
[1752976153278,0.97872238,118120.0,118110.0,1.09332864]
[1752976154279,0.39552238,118120.0,118110.0,1.09332864]
[1752976154478,0.97796238,118120.0,118110.0,1.09332864]
[1752976155675,0.97696238,118120.0,118110.0,1.09332864]
[1752976155876,0.97596238,118120.0,118110.0,1.09332864]
[1752976156181,0.80673328,118120.0,118110.0,1.09332864]
[1752976159580,0.97596228,118120.0,118110.0,1.09332864]
[1752976160077,0.97596228,118120.0,118110.0,0.9655234]
[1752976160580,0.97596228,118120.0,118110.0,1.09332864]
[1752976168387,0.84815704,118120.0,118110.0,1.09332864]
[1752976168578,0.80673328,118120.0,118110.0,1.09332864]
[1752976170383,0.80673328,118120.0,118110.0,0.73252864]
[1752976170689,0.80673328,118120.0,118110.0,1.09332864]
[1752976170886,0.80673328,118120.0,118110.0,0.9655234]
[1752976171087,0.80673328,118120.0,118110.0,1.09332864]
[1752976176086,0.80673328,118120.0,118110.0,0.9655234]
[1752976176287,0.80673328,118120.0,118110.0,1.09332864]
[1752976176493,0.67892804,118120.0,118110.0,1.09332864]
[1752976176699,0.80673328,118120.0,118110.0,1.09332864]
[1752976177199,0.67892804,118120.0,118110.0,1.09332864]
[1752976177400,0.80673328,118120.0,118110.0,1.09332864]
[1752976179096,0.97596228,118120.0,118110.0,1.09332864]
[1752976181602,0.97596228,118120.0,118110.0,0.9655234]
[1752976182101,0.97596228,118120.0,118110.0,1.09332864]
[1752976182497,1.10376752,118120.0,118110.0,1.09332864]
[1752976182702,1.10376752,118120.0,118110.0,0.6047234]
[1752976183001,1.46456752,118120.0,118110.0,0.5192434]
[1752976183401,1.10376752,118120.0,118110.0,0.5192434]
[1752976183999,1.10376752,118120.0,118110.0,0.5238034]
[1752976184198,1.46556752,118120.0,118110.0,0.5238034]
[1752976184705,1.10476752,118120.0,118110.0,0.5238034]
[1752976184903,1.46556752,118120.0,118110.0,0.5238034]
[1752976185202,1.46656752,118120.0,118110.0,0.5238034]
[1752976186798,1.10576752,118120.0,118110.0,0.5238034]
[1752976187200,1.10576752,118120.0,118110.0,0.5487934]
[1752976188200,1.46656752,118120.0,118110.0,0.5238034]
[1752976188404,1.46656752,118120.0,118110.0,0.35]
[1752976192013,1.46656752,118120.0,118110.0,0.5192434]
[1752976192312,1.46656752,118120.0,118110.0,0.35]
[1752976193808,1.59437276,118120.0,118110.0,0.35]
[1752976194317,1.59437276,118120.0,118100.0,0.00456]
[1752976194318,0.2021132,118110.0,118100.0,0.00456]
[1752976194506,0.75650648,118110.0,118100.0,0.00456]
[1752976194710,0.75650648,118110.0,118100.0,0.1738176]
[1752976195714,0.88431172,118110.0,118100.0,0.1738176]
[1752976196115,0.88431172,118110.0,118100.0,0.1985276]
[1752976197610,0.75650648,118110.0,118100.0,0.1985276]
[1752976200221,0.62870124,118110.0,118100.0,0.1985276]
[1752976200414,0.39570648,118110.0,118100.0,0.2405776]
[1752976203923,0.39670648,118110.0,118100.0,0.2571076]
[1752976204222,0.39770648,118110.0,118100.0,0.2571076]
[1752976205824,0.26990124,118110.0,118100.0,0.2571076]
[1752976206122,0.39770648,118110.0,118100.0,0.2571076]
[1752976209424,0.26990124,118110.0,118100.0,0.2571076]
[1752976209625,0.39770648,118110.0,118100.0,0.2571076]
[1752976210518,0.26990124,118110.0,118100.0,0.2571076]
[1752976210724,0.39770648,118110.0,118100.0,0.2571076]
[1752976213428,0.97938648,118110.0,118100.0,0.2571076]
[1752976217045,0.85158124,118110.0,118100.0,0.2571076]
[1752976217338,0.97938648,118110.0,118100.0,0.2571076]
[1752976218341,1.34018648,118110.0,118100.0,0.2571076]
[1752976219038,0.97938648,118110.0,118100.0,0.2571076]
[1752976219632,0.9794306,118110.0,118100.0,0.2571076]
[1752976220434,1.3402306,118110.0,118100.0,0.2571076]
[1752976225846,0.9794306,118110.0,118100.0,0.2571076]
[1752976226044,1.3402306,118110.0,118100.0,0.2571076]
[1752976226737,1.21242536,118110.0,118100.0,0.2571076]
[1752976226937,1.3402306,118110.0,118100.0,0.2571076]
[1752976227246,0.9794306,118110.0,118100.0,0.2571076]
[1752976227446,1.3402306,118110.0,118100.0,0.2571076]
[1752976233243,0.9794306,118110.0,118100.0,0.2571076]
[1752976233449,1.3402306,118110.0,118100.0,0.2571076]
[1752976236651,0.9794306,118110.0,118100.0,0.2571076]
[1752976237552,1.3402306,118110.0,118100.0,0.2571076]
[1752976238052,0.9794306,118110.0,118100.0,0.2571076]
[1752976238853,1.3402306,118110.0,118100.0,0.2571076]
[1752976241752,0.9794306,118110.0,118100.0,0.2571076]
[1752976241952,1.3402306,118110.0,118100.0,0.2571076]
[1752976242754,0.63074536,118110.0,118100.0,0.2571076]
[1752976242954,0.9791106,118110.0,118100.0,0.2571076]
[1752976244545,1.3399106,118110.0,118100.0,0.2571076]
[1752976244746,0.9791106,118110.0,118100.0,0.2571076]
[1752976246356,0.85130536,118110.0,118100.0,0.2571076]
[1752976246557,0.9791106,118110.0,118100.0,0.2571076]
[1752976247860,1.3399106,118110.0,118100.0,0.2571076]
[1752976248058,0.9791106,118110.0,118100.0,0.2571076]
[1752976248257,1.3399106,118110.0,118100.0,0.2571076]
[1752976248757,0.9791106,118110.0,118100.0,0.2571076]
[1752976248957,0.85130536,118110.0,118100.0,0.2571076]
[1752976249562,0.9791106,118110.0,118100.0,0.2571076]
[1752976250060,0.9791106,118110.0,118100.0,0.38491284]
[1752976250256,0.24659546,118110.0,118100.0,1.20351808]
[1752976250463,0.80462546,118110.0,118100.0,1.20351808]
[1752976250851,0.9324307,118110.0,118100.0,1.20351808]
[1752976251162,0.9324307,118110.0,118100.0,0.9479076]
[1752976251362,0.9304307,118110.0,118100.0,1.20351808]
[1752976251662,0.9304307,118110.0,118100.0,0.9479076]
[1752976251861,0.9304307,118110.0,118100.0,1.20351808]
[1752976252756,0.9304307,118110.0,118100.0,1.07571284]
[1752976255065,0.9535207,118110.0,118100.0,0.9479076]
[1752976255364,0.9535207,118110.0,118100.0,1.07571284]
[1752976260368,0.9535207,118110.0,118100.0,0.9479076]
[1752976260666,0.82571546,118110.0,118100.0,1.07571284]
[1752976260867,0.9535207,118110.0,118100.0,1.07571284]
[1752976265975,0.9776307,118110.0,118100.0,1.07571284]
[1752976266373,0.9776307,118110.0,118100.0,0.71491284]
[1752976266577,0.9776307,118110.0,118100.0,1.07571284]
[1752976266764,0.84982546,118110.0,118100.0,1.07571284]
[1752976266964,0.9776307,118110.0,118100.0,1.07571284]
[1752976267474,0.95835854,118110.0,118100.0,1.07571284]
[1752976267668,0.97753342,118110.0,118100.0,1.07571284]
[1752976270876,0.97753342,118110.0,118100.0,0.9479076]
[1752976271268,0.97753342,118110.0,118100.0,1.07571284]
[1752976272970,0.01917488,118110.0,118100.0,1.20351808]
[1752976273166,0.60025488,118110.0,118100.0,1.20351808]
[1752976273566,0.60025488,118110.0,118100.0,1.56431808]
[1752976273768,0.58108,118110.0,118100.0,1.56431808]
[1752976274175,0.58108,118110.0,118100.0,1.3087076]
[1752976274475,0.58108,118110.0,118100.0,1.56531808]
[1752976275275,0.38166054,118120.0,118110.0,0.1692432]
[1752976275471,0.38166054,118120.0,118110.0,0.5633732]
[1752976275472,0.43143659,118120.0,118110.0,0.5633732]
[1752976275777,0.95483139,118120.0,118110.0,0.74359844]
[1752976276674,0.95583139,118120.0,118110.0,0.74359844]
[1752976278978,0.78659129,118120.0,118110.0,0.74359844]
[1752976283075,0.78659129,118120.0,118110.0,1.08359844]
[1752976283076,0.05077605,118120.0,118110.0,1.08359844]
[1752976283271,0.60489605,118120.0,118110.0,1.21140368]
[1752976283680,0.60489605,118120.0,118110.0,1.08359844]
[1752976283884,0.02017605,118120.0,118110.0,1.08359844]
[1752976284075,0.60481605,118120.0,118110.0,1.08359844]
[1752976284381,0.60381605,118120.0,118110.0,1.08459844]
[1752976285273,0.60381605,118120.0,118110.0,1.21240368]
[1752976285780,0.60381605,118120.0,118110.0,1.08459844]
[1752976286281,0.58464,118120.0,118110.0,1.08459844]
[1752976286982,0.58464,118120.0,118110.0,1.21240368]
[1752976287276,0.60380919,118120.0,118110.0,1.21240368]
[1752976287582,0.60380919,118120.0,118110.0,1.08459844]
[1752976290384,0.58464,118120.0,118110.0,1.08459844]
[1752976290880,0.58464,118120.0,118110.0,1.21240368]
[1752976291080,0.58464,118120.0,118110.0,1.08459844]
[1752976293478,0.05531,118130.0,118120.0,0.2043891]
[1752976293679,0.6197146,118130.0,118120.0,1.23223958]
[1752976294985,0.6207146,118130.0,118120.0,1.23223958]
[1752976296988,0.60127,118130.0,118120.0,1.23223958]
[1752976297487,0.60127,118130.0,118120.0,0.9766291]
[1752976297685,0.60127,118130.0,118120.0,1.23223958]
[1752976297887,0.60127,118130.0,118120.0,1.29883803]
[1752976298189,0.60127,118130.0,118120.0,1.04322755]
[1752976298395,0.60127,118130.0,118120.0,1.29883803]
[1752976298686,0.60127,118130.0,118120.0,1.88335803]
[1752976299790,0.58556,118130.0,118120.0,1.88315803]
[1752976301594,0.001,118130.0,118120.0,2.17485803]
[1752976304996,0.001,118130.0,118120.0,1.91924755]
[1752976305294,0.001,118130.0,118120.0,2.17485803]
[1752976306994,0.01671,118130.0,118120.0,2.17485803]
[1752976307391,0.0757477,118130.0,118120.0,2.17485803]
[1752976307892,0.0757477,118130.0,118120.0,2.04705279]
[1752976308198,0.0757477,118130.0,118120.0,1.91924755]
[1752976308397,0.0757477,118130.0,118120.0,2.17485803]
[1752976309701,0.0757477,118130.0,118120.0,1.81405803]
[1752976309903,0.0757477,118130.0,118120.0,2.53565803]
[1752976310104,0.0527677,118130.0,118120.0,2.53565803]
[1752976310297,0.0204377,118130.0,118120.0,2.53565803]
[1752976311696,0.39685764,118130.0,118120.0,1.46273279]
[1752976311899,0.88546288,118130.0,118120.0,0.40602]
[1752976312102,0.88546288,118130.0,118120.0,0.5292291]
[1752976315308,0.6298524,118130.0,118120.0,0.5292291]
[1752976315507,0.88546288,118130.0,118120.0,0.5292291]
[1752976316003,0.88546288,118130.0,118120.0,0.36]
[1752976317203,0.2475191,118120.0,118110.0,0.1984528]
[1752976317408,1.46784728,118120.0,118110.0,0.3384528]
[1752976318010,1.46784728,118120.0,118110.0,0.1984528]
[1752976319305,1.46785891,118120.0,118110.0,0.001]
[1752976319511,1.48508922,118120.0,118110.0,0.001]
[1752976319711,0.2475334,118110.0,118100.0,0.3060108]
[1752976319912,0.75558797,118110.0,118100.0,0.6460108]
[1752976320507,0.75558797,118110.0,118100.0,0.6483408]
[1752976320811,0.75558797,118110.0,118100.0,0.6635108]
[1752976321011,0.75558797,118110.0,118100.0,0.6793508]
[1752976321611,0.75558797,118110.0,118100.0,0.5788827]
[1752976321612,1.33982797,118110.0,118100.0,0.5788827]
[1752976321815,1.46763321,118110.0,118100.0,0.34475]
[1752976322013,1.46763321,118110.0,118100.0,0.341]
[1752976322931,1.46763321,118110.0,118100.0,0.5102577]
[1752976323213,1.46763321,118110.0,118100.0,0.34]
[1752976323214,1.46863321,118110.0,118100.0,0.34]
[1752976324116,1.46963321,118110.0,118100.0,0.5092577]
[1752976324515,0.88539321,118110.0,118100.0,0.5140077]
[1752976324714,1.47027321,118110.0,118100.0,0.5140077]
[1752976324913,1.3850994,118110.0,118100.0,0.5140077]
[1752976326019,1.3850994,118110.0,118100.0,0.34475]
[1752976327419,1.3850994,118110.0,118100.0,0.36921]
[1752976331122,1.3849794,118110.0,118100.0,0.36921]
[1752976332122,1.0241794,118110.0,118100.0,0.36921]
[1752976332423,1.3849794,118110.0,118100.0,0.36921]
[1752976338126,1.0241794,118110.0,118100.0,0.36921]
[1752976338426,1.3849794,118110.0,118100.0,0.36921]
[1752976340324,1.3849794,118110.0,118100.0,0.5384677]
[1752976340528,1.3849794,118110.0,118100.0,0.36921]
[1752976341526,1.3849794,118110.0,118100.0,0.5384677]
[1752976341721,1.3849794,118110.0,118100.0,0.36921]
[1752976342728,1.3849794,118110.0,118100.0,0.5384677]
[1752976344230,1.3849794,118110.0,118100.0,0.5633877]
[1752976344528,1.21454273,118110.0,118100.0,0.5633877]
[1752976344730,1.3849794,118110.0,118100.0,0.5633877]
[1752976345024,1.21454273,118110.0,118100.0,0.5633877]
[1752976345231,1.34236283,118110.0,118100.0,0.5811777]
[1752976345630,1.21454273,118110.0,118100.0,0.7252778]
[1752976345830,1.34172283,118110.0,118100.0,0.7252778]
[1752976346130,1.21390273,118110.0,118100.0,0.7252778]
[1752976346325,1.34172283,118110.0,118100.0,0.7252778]
[1752976346725,1.34172283,118110.0,118100.0,0.5974577]
[1752976348934,0.98092283,118110.0,118100.0,0.5974577]
[1752976349134,1.34172283,118110.0,118100.0,0.5974577]
[1752976349633,1.40268219,118110.0,118100.0,0.5974577]
[1752976351033,1.34172283,118110.0,118100.0,0.5974577]
[1752976351334,1.40268219,118110.0,118100.0,0.5974577]
[1752976357237,1.34172283,118110.0,118100.0,0.5974577]
[1752976358138,1.21390273,118110.0,118100.0,0.5974577]
[1752976358338,1.34172283,118110.0,118100.0,0.5974577]
[1752976359739,1.21390273,118110.0,118100.0,0.5974577]
[1752976359939,1.34172283,118110.0,118100.0,0.5974577]
[1752976364044,1.21390273,118110.0,118100.0,0.5974577]
[1752976364241,1.34172283,118110.0,118100.0,0.5974577]
[1752976364545,1.46954293,118110.0,118100.0,0.36921]
[1752976364745,1.46954293,118110.0,118100.0,0.5384677]
[1752976365148,1.46954293,118110.0,118100.0,0.5633877]
[1752976365548,1.46954293,118110.0,118100.0,0.5811777]
[1752976370553,1.46954293,118110.0,118100.0,0.5974577]
[1752976370848,1.34172283,118110.0,118100.0,0.5974577]
[1752976380156,1.21390273,118110.0,118100.0,0.5974577]
[1752976380356,1.34172283,118110.0,118100.0,0.5974577]
[1752976384750,0.88542293,118110.0,118100.0,0.5974577]
[1752976384953,1.46942293,118110.0,118100.0,0.5974577]
[1752976387655,1.34160283,118110.0,118100.0,0.5974577]
[1752976389559,1.21378273,118110.0,118100.0,0.5974577]
[1752976389860,1.34160283,118110.0,118100.0,0.5974577]
[1752976390062,1.21378273,118110.0,118100.0,0.5974577]
[1752976390253,1.34160283,118110.0,118100.0,0.5974577]
[1752976392660,0.75760283,118110.0,118100.0,0.5974577]
[1752976392856,1.34132283,118110.0,118100.0,0.5974577]
[1752976393056,1.34132283,118110.0,118100.0,0.7252778]
[1752976393862,1.34132283,118110.0,118100.0,0.5974577]
[1752976394859,0.75760283,118110.0,118100.0,0.7252778]
[1752976395162,0.03663933,118110.0,118100.0,1.2138979]
[1752976395465,0.73302943,118110.0,118100.0,1.2138979]
[1752976396163,0.90227283,118110.0,118100.0,1.2138979]
[1752976396660,0.90227283,118110.0,118100.0,1.0860778]
[1752976397760,0.90127283,118110.0,118100.0,1.0860778]
[1752976400362,0.91792283,118110.0,118100.0,1.0860778]
[1752976401057,0.93374283,118110.0,118100.0,0.9582577]
[1752976401263,0.95641283,118110.0,118100.0,1.0860778]